bitfinex/quotes_SOLUSD_20250520
["timestamp","ask_amount","ask_price","bid_price","bid_amount"]
[1747757513816,48.93659346,165.99,165.92,37.9]
[1747757513994,48.93659346,165.99,165.92,19.84]
[1747757514315,27.8509859,165.97,165.89,8.1509]
[1747757514490,27.8509859,165.97,165.89,26.2109]
[1747757514692,27.8509859,165.96,165.87,19.84]
[1747757514891,26.0,165.97,165.9,3.44594466]
[1747757515209,27.8509859,165.96,165.9,3.44594466]
[1747757515591,53.8509859,165.97,165.9,3.44594466]
[1747757515789,26.0,165.97,165.9,3.44594466]
[1747757516000,15.06114826,165.99,165.92,1.6184]
[1747757516215,15.06114826,165.99,165.92,8.2169]
[1747757517815,15.06114826,165.99,165.93,3.44543766]
[1747757518619,15.06114826,165.99,165.92,26.2769]
[1747757519113,21.08560756,165.99,165.92,26.2769]
[1747757520220,21.08560756,165.99,165.92,19.6784]
[1747757520906,15.06114826,165.99,165.92,19.6784]
[1747757521395,15.06114826,165.99,165.93,3.44562648]
[1747757521793,6.02409638,166.0,165.93,3.44562648]
[1747757522305,21.08433734,166.0,165.93,3.44562648]
[1747757522609,6.02409638,166.0,165.94,19.74]
[1747757522815,15.05790424,166.03,165.94,28.60912239]
[1747757522999,15.05790424,166.03,165.95,25.20074886]
[1747757523732,15.05790424,166.03,165.96,3.44562648]
[1747757525305,42.90889014,166.03,165.96,3.44562648]
[1747757525727,15.05790424,166.03,165.94,19.74]
[1747757525928,42.90889014,166.03,165.94,19.74]
[1747757527016,48.93189803,166.03,165.95,3.44489727]
[1747757527205,27.8509859,166.0,165.95,3.44489727]
[1747757527417,27.8509859,165.99,165.95,3.44489727]
[1747757528025,27.8509859,166.0,165.95,3.44489727]
[1747757528231,27.8509859,166.02,165.91,30.03568754]
[1747757528416,27.8509859,166.0,165.91,107.1111]
[1747757528726,51.19595158,166.03,165.91,107.1111]
[1747757528901,27.8509859,166.0,165.91,107.1111]
[1747757529102,21.08560756,165.99,165.92,18.06]
[1747757529430,21.08560756,165.99,165.93,3.44632855]
[1747757530729,6.0244593,165.99,165.94,29.44632855]
[1747757531239,15.05922305,166.02,165.95,1.5369]
[1747757531533,15.05922305,166.02,165.95,103.7769]
[1747757531932,15.05922305,166.02,165.96,3.44632855]
[1747757532231,6.02300789,166.03,165.96,3.44632855]
[1747757532406,21.08052761,166.03,165.96,3.44632855]
[1747757532809,38.48307582,166.03,165.96,3.44632855]
[1747757533023,21.08052761,166.03,165.96,3.44632855]
[1747757533830,38.48307582,166.03,165.96,3.44632855]
[1747757535133,68.59811527,166.03,165.96,3.44632855]
[1747757535636,21.08052761,166.03,165.96,3.44632855]
[1747757536312,17.40254821,166.02,165.96,3.44632855]
[1747757536636,21.08433734,166.0,165.96,3.44632855]
[1747757537229,38.48688555,166.0,165.96,3.44632855]
[1747757537421,17.40254821,165.99,165.96,3.44632855]
[1747757538222,17.40254821,165.99,165.94,3.44632855]
[1747757538424,17.40254821,165.98,165.94,3.44632855]
[1747757538616,21.08814845,165.97,165.94,3.44632855]
[1747757539139,6.02518527,165.97,165.92,3.44632855]
[1747757540817,15.06296318,165.97,165.92,3.44632855]
[1747757541427,32.46551139,165.97,165.92,3.44632855]
[1747757541835,32.46551139,165.97,165.91,3.44632855]
[1747757542832,38.49069666,165.97,165.91,3.44632855]
[1747757543044,21.08814845,165.97,165.91,3.44632855]
[1747757543413,68.61662303,165.97,165.91,3.44632855]
[1747757543628,17.40254821,165.95,165.91,3.44632855]
[1747757544738,21.09196094,165.94,165.91,3.44632855]
[1747757545330,6.02627455,165.94,165.91,3.44632855]
[1747757546926,15.06498405,165.95,165.91,3.44632855]
[1747757547433,32.46753226,165.95,165.91,3.44632855]
[1747757548341,17.40254821,165.94,165.91,3.44632855]
[1747757548550,17.40254821,165.94,165.89,3.44632855]
[1747757549019,32.46753226,165.95,165.89,3.44632855]
[1747757549219,17.40254821,165.93,165.89,3.44632855]
[1747757549630,17.40254821,165.93,165.87,18.06]
[1747757549944,1.5912,165.94,165.81,1.6342]
[1747757549945,17.40254821,165.9,165.82,28.4692409]
[1747757550251,17.40254821,165.9,165.83,18.06]
[1747757550425,1.5912,165.94,165.83,18.06]
[1747757550630,17.40254821,165.93,165.83,18.06]
[1747757550930,17.40254821,165.92,165.83,18.06]
[1747757551239,21.09577481,165.91,165.83,18.06]
[1747757551439,21.09577481,165.91,165.84,3.45151615]
[1747757552830,6.02736423,165.91,165.84,3.45151615]
[1747757553042,6.02736423,165.91,165.85,3.45151615]
[1747757553348,38.49578028,165.93,165.85,3.45151615]
[1747757553658,17.40254821,165.92,165.85,3.45151615]
[1747757554326,17.40254821,165.91,165.85,3.45151615]
[1747757554728,17.40254821,165.91,165.83,18.06]
[1747757555247,21.0970464,165.9,165.82,20.0]
[1747757555435,21.0970464,165.9,165.83,18.06]
[1747757556028,21.0970464,165.9,165.84,3.44663176]
[1747757557353,21.09323207,165.93,165.85,3.44663176]
[1747757558352,21.09323207,165.93,165.86,3.44663176]
[1747757558851,38.49578028,165.93,165.86,3.44663176]
[1747757559436,17.40254821,165.92,165.86,3.44663176]
[1747757559749,17.40254821,165.92,165.83,100.56]
[1747757559946,21.09323207,165.93,165.83,105.98722053]
[1747757560328,38.49578028,165.93,165.83,105.98722053]
[1747757561249,38.49578028,165.93,165.84,3.44337632]
[1747757561645,17.40254821,165.92,165.84,3.44337632]
[1747757562265,17.40254821,165.92,165.85,3.44337632]
[1747757562425,38.49578028,165.93,165.85,3.44337632]
[1747757563652,38.49578028,165.93,165.83,100.56]
[1747757564536,38.49578028,165.93,165.84,18.64964886]
[1747757564852,21.09323207,165.93,165.84,44.64964886]
[1747757565043,21.09323207,165.93,165.84,48.09169391]
[1747757565452,15.06659434,165.93,165.85,6.6453]
[1747757565753,6.02627455,165.94,165.87,1.6534]
[1747757566059,6.02627455,165.94,165.88,20.0]
[1747757566227,6.02627455,165.94,165.89,18.08]
[1747757566836,6.02554832,165.96,165.89,100.58]
[1747757567037,6.02554832,165.96,165.9,44.64964886]
[1747757567253,6.02554832,165.96,165.9,127.14964886]
[1747757567462,6.02554832,165.96,165.9,130.59074848]
[1747757568059,15.06198983,165.99,165.9,130.59074848]
[1747757568228,15.06198983,165.99,165.91,3.44109962]
[1747757568627,15.06198983,165.99,165.93,26.0]
[1747757569229,15.06198983,165.99,165.92,6.0212]
[1747757569438,32.46453804,165.99,165.92,26.0]
[1747757569643,17.40254821,165.97,165.91,3.44109962]
[1747757569837,17.40254821,165.97,165.9,18.06]
[1747757570052,21.08941913,165.96,165.9,18.06]
[1747757570243,38.49196734,165.96,165.9,18.06]
[1747757570444,17.40254821,165.95,165.9,18.06]
[1747757570757,17.40254821,165.93,165.9,18.06]
[1747757570968,17.40254821,165.93,165.88,20.0]
[1747757572148,21.09450337,165.92,165.88,20.0]
[1747757575454,15.06750241,165.92,165.88,20.0]
[1747757577447,38.49705158,165.92,165.88,20.0]
[1747757579069,38.49705158,165.92,165.87,82.5]
[1747757581169,68.6320564,165.92,165.87,82.5]
[1747757581472,17.40254821,165.91,165.87,82.5]
[1747757581672,17.40254821,165.89,165.84,19.74]
[1747757582353,17.40254821,165.89,165.85,3.45238259]
[1747757583168,21.09959006,165.88,165.85,3.45238259]
[1747757584052,21.09959006,165.88,165.84,19.74]
[1747757585158,38.50213827,165.88,165.8,6.6545]
[1747757585680,38.50213827,165.88,165.81,21.53328316]
[1747757586658,38.50213827,165.88,165.82,3.45328316]
[1747757587366,21.09959006,165.88,165.82,3.45328316]
[1747757587869,21.09959006,165.88,165.83,3.45328316]
[1747757588062,6.0284543,165.88,165.83,3.45328316]
[1747757588771,15.06614032,165.94,165.85,1.6275]
[1747757589087,15.06614032,165.94,165.86,19.74]
[1747757589284,21.08560756,165.99,165.88,18.64964886]
[1747757589466,17.40254821,165.98,165.88,18.64964886]
[1747757589790,43.40254821,165.98,165.87,24.2009]
[1747757590290,17.40254821,165.97,165.87,24.2009]
[1747757590477,17.40254821,165.97,165.88,3.45328316]
[1747757591088,26.0,165.98,165.88,3.45328316]
[1747757591289,38.49069666,165.97,165.88,3.45328316]
[1747757591475,38.49069666,165.97,165.89,3.45328316]
[1747757592887,21.08814845,165.97,165.9,3.45328316]
[1747757594273,21.08814845,165.97,165.91,3.45328316]
[1747757594493,6.02518527,165.97,165.92,1.6279]
[1747757594993,6.02518527,165.97,165.93,18.06]
[1747757595370,17.40254821,166.0,165.93,18.06]
[1747757595671,17.40254821,166.0,165.94,3.45328316]
[1747757595869,17.40254821,166.01,165.94,3.45328316]
[1747757596501,21.08433734,166.0,165.94,3.45328316]
[1747757596707,21.08433734,166.0,165.95,3.45328316]
[1747757598391,21.08433734,166.0,165.93,18.06]
[1747757598582,15.06024096,166.0,165.93,18.06]
[1747757599581,15.06024096,166.0,165.94,3.44528401]
[1747757599778,6.02373351,166.01,165.94,29.44528401]
[1747757599984,6.02373351,166.01,165.94,35.66718401]
[1747757600799,21.08132356,166.03,165.95,3.44528401]
[1747757602276,68.59891122,166.03,165.94,32.2219]
[1747757602474,17.40254821,166.02,165.94,26.0]
[1747757602778,68.59891122,166.03,165.94,26.0]
[1747757603301,51.19636301,166.03,165.94,26.0]
[1747757603478,68.59891122,166.03,165.94,26.0]
[1747757603801,17.40254821,166.02,165.95,18.64964886]
[1747757604190,17.40254821,166.01,165.94,26.0]
[1747757604386,17.40254821,165.99,165.94,18.06]
[1747757605092,21.08687792,165.98,165.94,18.06]
[1747757606914,21.08687792,165.98,165.92,19.74]
[1747757607279,17.40254821,165.97,165.92,19.74]
[1747757607990,68.61353746,165.98,165.92,19.74]
[1747757608783,21.08687792,165.98,165.92,19.74]
[1747757609403,38.48942613,165.98,165.92,19.74]
[1747757610698,21.08306728,166.01,165.93,18.64964886]
[1747757611286,21.08306728,166.01,165.95,18.64964886]
[1747757611489,6.02373351,166.01,165.97,44.64964886]
[1747757611903,6.02373351,166.01,165.97,26.0]
[1747757612100,23.42628172,166.01,165.96,18.06]
[1747757612307,17.40254821,166.0,165.94,18.06]
[1747757612784,17.40254821,165.98,165.94,18.06]
[1747757614722,21.08814845,165.97,165.94,18.06]
[1747757615091,6.02518527,165.97,165.94,18.06]
[1747757616884,21.08483562,166.0,165.94,18.06]
[1747757618010,6.02409638,166.0,165.97,26.0]
[1747757618824,6.02337067,166.02,165.98,18.64964886]
[1747757619029,15.05824514,166.03,165.98,18.64964886]
[1747757619503,32.46079335,166.03,165.99,26.0]
[1747757619891,15.05824514,166.03,165.99,26.0]
[1747757621093,6.02228244,166.05,165.99,26.0]
[1747757622533,17.40254821,166.04,165.99,26.0]
[1747757624317,17.40254821,166.04,165.97,26.0]
[1747757624528,21.08052761,166.03,165.97,26.0]
[1747757624707,21.08052761,166.03,165.99,26.0]
[1747757628123,6.02300789,166.03,165.99,26.0]
[1747757628509,21.07798855,166.05,165.99,26.0]
[1747757628903,21.07798855,166.05,166.01,26.0]
[1747757628904,6.02228244,166.05,166.01,26.0]
[1747757629130,6.02228244,166.05,166.02,26.0]
[1747757629632,6.02228244,166.05,166.03,18.06]
[1747757630330,17.40254821,166.11,166.03,18.06]
[1747757630331,6.02083207,166.09,166.06,26.0]
[1747757630538,6.02083207,166.09,166.07,26.0]
[1747757630905,21.07291226,166.09,166.03,24.4467]
[1747757631126,21.07291226,166.09,166.06,26.0]
[1747757631933,6.02083207,166.09,166.06,26.0]
[1747757632227,21.07037504,166.11,166.06,26.0]
[1747757633127,38.47292325,166.11,166.06,26.0]
[1747757633302,17.40254821,166.08,166.05,26.0]
[1747757633504,17.40254821,166.08,166.06,26.0]
[1747757634354,6.0211946,166.08,166.06,26.0]
[1747757635442,38.47672932,166.08,166.02,19.66]
[1747757635649,38.47672932,166.08,166.03,26.0]
[1747757636849,21.07418111,166.08,166.03,26.0]
[1747757637148,6.0211946,166.08,166.03,26.0]
[1747757637536,6.0211946,166.08,166.04,18.64964886]
[1747757638230,6.0211946,166.08,166.07,26.0]
[1747757638431,15.05099358,166.11,166.07,26.0]
[1747757639333,17.40254821,166.09,166.05,26.0]
[1747757640016,17.40254821,166.1,166.05,26.0]
[1747757640242,17.40254821,166.09,166.02,19.66]
[1747757640543,21.0754501,166.07,166.03,26.0]
[1747757640730,38.47799831,166.07,166.03,26.0]
[1747757640934,21.0754501,166.07,166.03,26.0]
[1747757641735,6.02155717,166.07,166.03,26.0]
[1747757642548,21.07291226,166.09,166.03,26.0]
[1747757644643,6.02083207,166.09,166.04,18.64964886]
[1747757644832,6.02083207,166.09,166.05,26.0]
[1747757645837,38.47546047,166.09,166.05,26.0]
[1747757647338,21.07291226,166.09,166.05,26.0]
[1747757648928,17.40254821,166.08,166.05,26.0]
[1747757649134,21.0754501,166.07,166.02,37.72]
[1747757649343,21.0754501,166.07,166.02,63.72]
[1747757649955,21.0754501,166.07,166.02,37.72]
[1747757650956,21.0754501,166.07,166.02,19.66]
[1747757651156,21.0754501,166.07,166.03,18.06]
[1747757651452,15.05389293,166.07,166.03,18.06]
[1747757652159,32.45644114,166.07,166.03,18.06]
[1747757652492,15.05389293,166.07,166.03,18.06]
[1747757653661,21.0754501,166.07,166.03,18.06]
[1747757654361,21.0754501,166.07,166.02,37.72]
[1747757654959,38.47799831,166.07,166.02,37.72]
[1747757657458,21.0754501,166.07,166.02,19.66]
[1747757657760,38.47799831,166.07,166.02,19.66]
[1747757658074,21.0754501,166.07,166.02,19.66]
[1747757658465,6.02155717,166.07,166.03,18.64964886]
[1747757658659,6.02155717,166.07,166.02,19.66]
[1747757658846,15.05389293,166.07,166.02,19.66]
[1747757659268,15.05389293,166.07,166.03,3.44479545]
[1747757659640,32.45644114,166.07,166.03,3.44479545]
[1747757660265,32.45644114,166.07,166.02,18.06]
[1747757660767,17.40254821,166.06,166.02,18.06]
[1747757660969,21.07798855,166.05,166.02,18.06]
[1747757661465,38.48053676,166.05,166.02,18.06]
[1747757661684,38.48053676,166.05,166.0,37.58]
[1747757662478,38.48053676,166.05,166.0,19.52]
[1747757662767,17.40254821,166.04,166.01,3.45040688]
[1747757662942,6.02300789,166.03,166.01,3.45040688]
[1747757663874,21.08052761,166.03,166.0,19.52]
[1747757665118,6.02228244,166.05,166.0,19.52]
[1747757665399,6.02228244,166.05,166.03,26.0]
[1747757665601,6.02228244,166.05,166.04,18.06]
[1747757665798,6.02155717,166.07,166.04,18.06]
[1747757666296,21.0754501,166.07,166.04,18.06]
[1747757667206,15.05389293,166.07,166.04,18.06]
[1747757668995,6.02083207,166.09,166.04,18.06]
[1747757669203,21.07291226,166.09,166.05,3.45245377]
[1747757669705,17.40254821,166.08,166.05,3.45245377]
[1747757670078,17.40254821,166.07,166.05,3.45245377]
[1747757670301,23.42446799,166.06,166.04,18.06]
[1747757670501,17.40254821,166.05,166.03,26.0]
[1747757670808,17.40254821,166.05,166.02,37.58]
[1747757671205,17.40254821,166.03,165.98,1.5089]
[1747757671384,17.40254821,165.99,165.97,8.4692409]
[1747757671702,26.14216157,166.05,165.94,45.6483]
[1747757671894,17.40254821,166.02,165.97,26.0]
[1747757672483,21.08306728,166.01,165.97,26.0]
[1747757672683,38.48561549,166.01,165.97,26.0]
[1747757674307,17.40254821,166.0,165.94,1.5883]
[1747757674601,21.08560756,165.99,165.94,44.06]
[1747757675193,21.08560756,165.99,165.95,3.45218347]
[1747757676296,21.08560756,165.99,165.96,3.45218347]
[1747757676596,15.06114826,165.99,165.96,3.45218347]
[1747757677497,15.06114826,165.99,165.94,44.06]
[1747757677790,32.46369647,165.99,165.94,26.0]
[1747757678713,32.46369647,165.99,165.93,37.52]
[1747757678714,68.61045229,165.99,165.93,19.46]
[1747757678921,17.40254821,165.97,165.93,37.52]
[1747757679417,17.40254821,165.96,165.93,37.52]
[1747757679708,17.40254821,165.96,165.92,26.0]
[1747757680515,17.40254821,165.95,165.9,18.06]
[1747757680689,21.09068995,165.95,165.9,18.06]
[1747757681009,21.09068995,165.95,165.9,44.06]
[1747757681212,6.02591141,165.95,165.93,26.0]
[1747757682715,21.08814845,165.97,165.93,26.0]
[1747757684906,15.06296318,165.97,165.93,26.0]
[1747757685607,32.46551139,165.97,165.93,26.0]
[1747757686214,17.40254821,165.96,165.91,44.06]
[1747757686520,17.40254821,165.96,165.91,26.0]
[1747757687022,21.09068995,165.95,165.91,26.0]
[1747757687593,17.40254821,165.94,165.88,19.46]
[1747757687924,17.40254821,165.94,165.89,44.06]
[1747757689302,17.40254821,165.92,165.88,19.46]
[1747757690406,68.62896897,165.93,165.88,19.46]
[1747757691017,38.49578028,165.93,165.88,19.46]
[1747757691213,21.09323207,165.93,165.88,19.46]
[1747757691709,15.06659434,165.93,165.88,19.46]
[1747757692712,6.02627455,165.94,165.91,26.0]
[1747757692918,6.02627455,165.94,165.91,44.06]
[1747757693827,15.06453065,165.96,165.91,44.06]
[1747757695827,21.09007897,165.96,165.91,44.06]
[1747757697934,17.40254821,165.95,165.91,44.06]
[1747757698112,17.40254821,165.94,165.88,37.52]
[1747757698310,17.40254821,165.95,165.88,63.52]
[1747757698717,51.21782059,165.96,165.88,63.52]
[1747757698718,17.40254821,165.94,165.88,63.52]
[1747757699517,17.42342018,165.94,165.89,17.42342018]
[1747757700127,21.09323207,165.93,165.89,17.42342018]
[1747757700345,68.64984094,165.93,165.88,62.88342018]
[1747757700633,21.09323207,165.93,165.88,17.42342018]
[1747757700804,6.02663773,165.93,165.92,17.42342018]
[1747757701231,6.02663773,165.93,165.91,18.06]
[1747757701437,6.02663773,165.93,165.9,17.42342018]
[1747757701732,21.09323207,165.93,165.89,35.48342018]
[1747757701921,38.51665225,165.93,165.89,35.48342018]
[1747757702119,38.51665225,165.93,165.89,18.06]
[1747757702332,21.09323207,165.93,165.9,17.42342018]
[1747757703319,21.09323207,165.93,165.89,17.42342018]
[1747757704443,21.09323207,165.93,165.9,17.42342018]
[1747757705213,21.09323207,165.93,165.89,17.42342018]
[1747757706426,38.51665225,165.93,165.89,17.42342018]
[1747757706629,17.42342018,165.92,165.88,17.42342018]
[1747757707032,51.22642076,165.93,165.89,17.42342018]
[1747757707352,21.09323207,165.93,165.89,17.42342018]
[1747757708353,21.09323207,165.93,165.92,17.42342018]
[1747757708647,6.02663773,165.93,165.92,17.42342018]
[1747757710133,21.0901993,165.96,165.92,17.42342018]
[1747757710452,17.42342018,165.95,165.9,17.42342018]
[1747757710650,17.42342018,165.95,165.89,18.06]
[1747757710651,17.42342018,165.93,165.89,18.06]
[1747757712252,15.06750241,165.92,165.89,35.48342018]
[1747757712443,15.06750241,165.92,165.9,17.42342018]
[1747757713232,15.06750241,165.92,165.91,17.42342018]
[1747757714154,15.06750241,165.92,165.9,17.42342018]
[1747757714339,15.06750241,165.92,165.89,35.48342018]
[1747757717641,15.06750241,165.92,165.91,17.42342018]
[1747757717836,6.02663773,165.93,165.91,17.42342018]
[1747757718148,1.5062,166.03,165.92,60.84684036]
[1747757718353,47.54042043,166.02,165.98,17.42342018]
[1747757718528,30.11700025,166.02,165.98,17.42342018]
[1747757718846,51.20173483,166.01,165.95,18.06]
[1747757719052,17.42342018,166.0,165.95,35.48342018]
[1747757719359,17.42342018,165.99,165.95,18.06]
[1747757719729,21.08687792,165.98,165.95,18.06]
[1747757721731,21.08687792,165.98,165.95,35.48342018]
[1747757722154,21.08687792,165.98,165.96,17.42342018]
[1747757722338,6.02482226,165.98,165.97,17.42342018]
[1747757723360,6.02409638,166.0,165.97,17.42342018]
[1747757723649,6.02409638,166.0,165.99,17.42342018]
[1747757723825,21.079258,166.04,165.99,17.42342018]
[1747757724023,38.50267818,166.04,165.99,17.42342018]
[1747757724431,21.079258,166.04,165.99,17.42342018]
[1747757724640,21.079258,166.04,166.01,17.42342018]
[1747757724947,21.079258,166.04,166.02,17.42342018]
[1747757725345,21.079258,166.04,166.0,18.06]
[1747757725346,21.079258,166.04,166.03,17.42342018]
[1747757725563,21.079258,166.04,166.0,18.06]
[1747757725735,38.50267818,166.04,166.0,35.48342018]
[1747757726256,21.079258,166.04,166.0,35.48342018]
[1747757727033,57.64346231,166.08,166.0,35.48342018]
[1747757727034,51.32539754,166.07,166.01,17.42342018]
[1747757727233,17.42342018,166.06,166.01,17.42342018]
[1747757727528,51.18323597,166.07,166.02,17.42342018]
[1747757727765,21.0754501,166.07,166.03,17.42342018]
[1747757728656,38.49887028,166.07,166.03,17.42342018]
[1747757728963,68.60665615,166.07,166.02,17.42342018]
[1747757729257,68.60665615,166.07,166.01,26.0]
[1747757729475,17.42342018,166.06,166.01,43.42342018]
[1747757729652,17.42342018,166.04,166.0,18.06]
[1747757729829,17.42342018,166.03,165.98,99.92342018]
[1747757730030,17.42342018,166.01,165.96,19.42]
[1747757730257,17.42342018,166.0,165.95,1.5494]
[1747757730563,17.42342018,166.0,165.96,17.42342018]
[1747757730755,17.42342018,166.0,165.95,1.5494]
[1747757730943,38.50902774,165.99,165.94,18.06]
[1747757731143,38.50902774,165.99,165.94,35.48342018]
[1747757731460,38.50902774,165.99,165.95,17.42342018]
[1747757731664,38.50902774,165.99,165.95,27.85891562]
[1747757731665,21.08560756,165.99,165.95,27.85891562]
[1747757732360,21.08560756,165.99,165.96,27.85891562]
[1747757733554,21.08560756,165.99,165.98,27.85891562]
[1747757733753,6.0244593,165.99,165.98,27.85891562]
[1747757733955,6.0244593,165.99,165.98,53.85891562]
[1747757735249,6.0244593,165.99,165.98,26.0]
[1747757735564,15.06114826,165.99,165.96,45.91891562]
[1747757735747,15.06114826,165.99,165.96,18.06]
[1747757736149,42.92006388,165.99,165.96,18.06]
[1747757737067,15.06114826,165.99,165.96,18.06]
[1747757737244,15.06114826,165.99,165.92,120.56964886]
[1747757737446,42.92006388,165.99,165.94,27.85891562]
[1747757737646,48.94452318,165.99,165.94,27.85891562]
[1747757738153,48.94452318,165.99,165.95,27.85891562]
[1747757738350,21.08560756,165.99,165.95,27.85891562]
[1747757738844,48.94452318,165.99,165.95,27.85891562]
[1747757739259,27.85891562,165.98,165.92,127.92]
[1747757739459,27.85891562,165.97,165.93,18.06]
[1747757739656,21.08941913,165.96,165.92,155.77891562]
[1747757740471,27.85891562,165.95,165.91,27.85891562]
[1747757741270,79.07607637,165.96,165.91,27.85891562]
[1747757741575,51.21716075,165.96,165.92,27.85891562]
[1747757742071,51.21716075,165.96,165.93,27.85891562]
[1747757742650,51.21716075,165.96,165.92,27.85891562]
[1747757744376,79.07607637,165.96,165.91,27.85891562]
[1747757744677,27.85891562,165.94,165.91,18.06]
[1747757745478,27.85891562,165.93,165.88,47.27891562]
[1747757745775,27.85891562,165.93,165.89,27.85891562]
[1747757745960,21.09450337,165.92,165.89,27.85891562]
[1747757748672,15.06750241,165.92,165.89,27.85891562]
[1747757749483,27.85891562,165.91,165.86,82.5]
[1747757749655,27.85891562,165.9,165.86,18.06]
[1747757749980,15.06750241,165.92,165.89,27.85891562]
[1747757750279,15.06750241,165.92,165.91,27.85891562]
[1747757750862,21.09068995,165.95,165.91,27.85891562]
[1747757751055,21.09068995,165.95,165.92,27.85891562]
[1747757751757,21.09068995,165.95,165.93,27.85891562]
[1747757752058,21.09068995,165.95,165.94,27.85891562]
[1747757752882,15.06477854,165.95,165.93,27.85891562]
[1747757753561,15.06477854,165.95,165.92,27.85891562]
[1747757753764,15.06477854,165.95,165.92,17.41794764]
[1747757754277,15.06477854,165.95,165.87,82.5]
[1747757754473,15.06477854,165.95,165.92,17.41794764]
[1747757754656,32.48272618,165.95,165.91,17.41794764]
[1747757754855,17.41794764,165.93,165.86,82.5]
[1747757755056,17.41794764,165.93,165.88,17.41794764]
[1747757755373,17.41794764,165.91,165.87,17.41794764]
[1747757755949,0.14216157,165.91,165.8,307.96]
[1747757756152,17.41794764,165.88,165.84,17.41794764]
[1747757756384,21.10086211,165.87,165.84,17.41794764]
[1747757757763,21.10086211,165.87,165.82,44.06]
[1747757757960,21.10086211,165.87,165.84,27.89636964]
[1747757758588,6.0284543,165.88,165.85,27.89636964]
[1747757759363,21.09959006,165.88,165.84,27.89636964]
[1747757760185,48.9959597,165.88,165.82,44.06]
[1747757760390,27.89636964,165.83,165.76,18.64964886]
[1747757760572,27.89636964,165.81,165.74,6.6233]
[1747757760776,27.89636964,165.8,165.75,45.95636964]
[1747757760973,27.89636964,165.8,165.75,27.89636964]
[1747757761365,27.89636964,165.8,165.74,18.06]
[1747757761565,21.10722469,165.82,165.76,27.89636964]
[1747757761859,21.10722469,165.82,165.78,27.89636964]
[1747757762099,6.03063562,165.82,165.81,27.89636964]
[1747757762269,6.0284543,165.88,165.81,27.89636964]
[1747757762465,33.92482394,165.88,165.84,27.89636964]
[1747757762775,48.9959597,165.88,165.83,27.89636964]
[1747757763396,48.9959597,165.88,165.84,27.89636964]
[1747757763801,48.9959597,165.88,165.8,26.0]
[1747757764081,48.9959597,165.88,165.83,27.89636964]
[1747757764279,48.9959597,165.88,165.79,19.6872]
[1747757764280,27.89636964,165.87,165.79,19.6872]
[1747757764581,27.89636964,165.86,165.82,27.89636964]
[1747757764787,6.02954476,165.85,165.82,27.89636964]
[1747757765107,21.10340668,165.85,165.82,27.89636964]
[1747757765787,27.89636964,165.84,165.79,1.6072]
[1747757765997,48.99977632,165.85,165.8,27.89636964]
[1747757766198,21.10340668,165.85,165.82,27.89636964]
[1747757766660,48.99977632,165.85,165.79,19.6872]
[1747757766984,27.89636964,165.83,165.79,18.08]
[1747757767375,27.89636964,165.84,165.8,27.89636964]
[1747757767584,27.89636964,165.84,165.79,18.08]
[1747757767890,27.89636964,165.84,165.79,45.97636964]
[1747757768386,21.10340668,165.85,165.81,27.89636964]
[1747757768594,21.10340668,165.85,165.79,18.08]
[1747757768770,42.97023156,165.85,165.81,27.89636964]
[1747757768966,15.07386192,165.85,165.81,27.89636964]
[1747757769170,42.97023156,165.85,165.81,27.89636964]
[1747757769677,15.07386192,165.85,165.81,27.89636964]
[1747757769875,15.07386192,165.85,165.83,27.89636964]
[1747757770265,15.07386192,165.85,165.79,18.08]
[1747757770466,27.89636964,165.84,165.8,27.89636964]
[1747757771694,21.10595187,165.83,165.8,27.89636964]
[1747757772292,21.10595187,165.83,165.81,27.89636964]
[1747757772503,21.10595187,165.83,165.79,18.08]
[1747757772793,21.10595187,165.83,165.81,27.89636964]
[1747757772994,21.10595187,165.83,165.8,27.89636964]
[1747757774295,21.10595187,165.83,165.78,19.44]
[1747757774476,21.10595187,165.83,165.8,27.89636964]
[1747757775489,79.15368133,165.83,165.79,27.89636964]
[1747757775790,79.15368133,165.83,165.8,27.89636964]
[1747757775791,51.25731169,165.83,165.8,27.89636964]
[1747757776171,51.25731169,165.83,165.78,37.52]
[1747757776369,51.25731169,165.83,165.79,27.89636964]
[1747757776586,51.25731169,165.83,165.8,27.89636964]
[1747757776791,21.10595187,165.83,165.81,27.89636964]
[1747757776987,21.10595187,165.83,165.82,27.89636964]
[1747757777381,6.03027196,165.83,165.82,27.89636964]
[1747757777892,15.07113576,165.88,165.82,83.35743928]